{"text_format":"3","workbook":"xlsx","n_sheets":3,"sheets":["Öğrenci Listesi","Sınıf Listesi","Öğrenci Ayrıntıları"],"not_rendered":{"images":2,"defined_names":8},"read":"whole","date_system":"1900"}

{"sheet":"Öğrenci Listesi","index":0,"n_rows":8,"n_cols":13,"rows_kept":8,"merged":[[1,2,2,3],[1,4,1,11],[2,4,2,11],[6,12,8,16]]}
[]
[null,null,"Öğrenci Listesi",null,"SINIF LİSTESİNE GİT"]
[{"$nulls":4},"ÖĞRENCİ AYRINTILARINA GİT"]
[null,null,"ÖĞRENCİ ADI","E-POSTA","EV TELEFONU","CEP TELEFONU","Doğum Tarihi","ACİL DURUMDA ULAŞILACAK KİŞİ","ACİL DURUM TELEFONU","DOKTOR","DOKTOR TELEFONU","  "]
[null,null,"Ad 1","E-posta adresi","Ev telefonu","Cep telefonu","Tarih","Kişi 1","Acil durum telefonu","Doktor 1","Doktor telefonu"]
[null,null,"Ad 2","E-posta adresi","Ev telefonu","Cep telefonu","Tarih","Kişi 2","Acil durum telefonu","Doktor 2","Doktor telefonu"]
[null,null,"Ad 3","E-posta adresi","Ev telefonu","Cep telefonu","Tarih","Kişi 3","Acil durum telefonu","Doktor 3","Doktor telefonu",null,"İpucu: Daha fazla öğrenci eklemek için tablonun son hücresinde Sekme tuşuna basın."]
[null,null,"Ad 4","E-posta adresi","Ev telefonu","Cep telefonu","Tarih","Kişi 4","Acil durum telefonu","Doktor 4","Doktor telefonu"]

{"sheet":"Sınıf Listesi","index":1,"n_rows":12,"n_cols":7,"rows_kept":12,"merged":[[1,2,2,2],[1,3,2,3],[1,4,1,6],[2,4,2,6]]}
[]
[null,null,"Sınıf Listesi","Grafik Tasarım Enstitüsü","ÖĞRENCİ LİSTESİNE GİT"]
[{"$nulls":4},"ÖĞRENCİ AYRINTILARINA GİT"]
[null,null,"DERS","Ders adı","BAŞLANGIÇ TARİHİ","Tarih"]
[null,null,"EĞİTMENİ","Eğitmen 1","BİTİŞ TARİHİ","Tarih"]
[null,null,"KAYITLI ÖĞRENCİLER",{"$f":"COUNTA(Öğrenci_Listesi[ÖĞRENCİ ADI])","v":4}]
[]
[null,null,"ÖĞRENCİ ADI","E-POSTA","EV TELEFONU","CEP TELEFONU","  "]
[null,null,"Ad 1",{"$f":"IFERROR(VLOOKUP(Öğrenci_Listesi[[#This Row],[ÖĞRENCİ ADI]],Öğrenciler[],2),\"\")","v":"E-posta adresi"},{"$f":"IFERROR(VLOOKUP(Öğrenci_Listesi[[#This Row],[ÖĞRENCİ ADI]],Öğrenciler[],3),\"\")","v":"Ev telefonu"},{"$f":"IFERROR(VLOOKUP(Öğrenci_Listesi[[#This Row],[ÖĞRENCİ ADI]],Öğrenciler[],4),\"\")","v":"Cep telefonu"}]
[null,null,"Ad 2",{"$f":"IFERROR(VLOOKUP(Öğrenci_Listesi[[#This Row],[ÖĞRENCİ ADI]],Öğrenciler[],2),\"\")","v":"E-posta adresi"},{"$f":"IFERROR(VLOOKUP(Öğrenci_Listesi[[#This Row],[ÖĞRENCİ ADI]],Öğrenciler[],3),\"\")","v":"Ev telefonu"},{"$f":"IFERROR(VLOOKUP(Öğrenci_Listesi[[#This Row],[ÖĞRENCİ ADI]],Öğrenciler[],4),\"\")","v":"Cep telefonu"}]
[null,null,"Ad 3",{"$f":"IFERROR(VLOOKUP(Öğrenci_Listesi[[#This Row],[ÖĞRENCİ ADI]],Öğrenciler[],2),\"\")","v":"E-posta adresi"},{"$f":"IFERROR(VLOOKUP(Öğrenci_Listesi[[#This Row],[ÖĞRENCİ ADI]],Öğrenciler[],3),\"\")","v":"Ev telefonu"},{"$f":"IFERROR(VLOOKUP(Öğrenci_Listesi[[#This Row],[ÖĞRENCİ ADI]],Öğrenciler[],4),\"\")","v":"Cep telefonu"}]
[null,null,"Ad 4",{"$f":"IFERROR(VLOOKUP(Öğrenci_Listesi[[#This Row],[ÖĞRENCİ ADI]],Öğrenciler[],2),\"\")","v":"E-posta adresi"},{"$f":"IFERROR(VLOOKUP(Öğrenci_Listesi[[#This Row],[ÖĞRENCİ ADI]],Öğrenciler[],3),\"\")","v":"Ev telefonu"},{"$f":"IFERROR(VLOOKUP(Öğrenci_Listesi[[#This Row],[ÖĞRENCİ ADI]],Öğrenciler[],4),\"\")","v":"Cep telefonu"}]

{"sheet":"Öğrenci Ayrıntıları","index":2,"n_rows":13,"n_cols":4,"rows_kept":13,"merged":[[1,2,2,2],[1,3,1,4],[2,3,2,4],[3,2,3,3]]}
[]
[null,null,"Öğrenci Ayrıntıları","ÖĞRENCİ LİSTESİNE GİT"]
[{"$nulls":3},"SINIF LİSTESİNE GİT"]
[null,null,"İPUCU: ÖĞRENCİ AYRINTILARINI GÜNCELLEŞTİRMEK İÇİN D5 HÜCRESİNDEKİ AŞAĞI AÇILAN LİSTEDEN BİR ÖĞRENCİ SEÇİN"]
[null,null,"ÖĞRENCİ ADI","Ad 1"]
[null,null,"E-POSTA",{"$f":"IFERROR(VLOOKUP(ÖğrenciAdı,Öğrenciler[],2,FALSE),\"\")","v":"E-posta adresi"}]
[null,null,"EV TELEFONU",{"$f":"IFERROR(VLOOKUP(ÖğrenciAdı,Öğrenciler[],3,FALSE),\"\")","v":"Ev telefonu"}]
[null,null,"CEP TELEFONU",{"$f":"IFERROR(VLOOKUP(ÖğrenciAdı,Öğrenciler[],4,FALSE),\"\")","v":"Cep telefonu"}]
[null,null,"Doğum Tarihi",{"$f":"IFERROR(VLOOKUP(ÖğrenciAdı,Öğrenciler[],5,FALSE),\"\")","v":"Tarih"}]
[null,null,"ACİL DURUMDA ULAŞILACAK KİŞİ",{"$f":"IFERROR(VLOOKUP(ÖğrenciAdı,Öğrenciler[],6,FALSE),\"\")","v":"Kişi 1"}]
[null,null,"ACİL DURUM TELEFONU",{"$f":"IFERROR(VLOOKUP(ÖğrenciAdı,Öğrenciler[],7,FALSE),\"\")","v":"Acil durum telefonu"}]
[null,null,"DOKTOR",{"$f":"IFERROR(VLOOKUP(ÖğrenciAdı,Öğrenciler[],8,FALSE),\"\")","v":"Doktor 1"}]
[null,null,"DOKTOR TELEFONU",{"$f":"IFERROR(VLOOKUP(ÖğrenciAdı,Öğrenciler[],9,FALSE),\"\")","v":"Doktor telefonu"}]